[Event "*** Biggest EVER Titled Tuesday"]
[Site "Chess.com"]
[Date "2018.04.17"]
[Round "7"]
[White "AnonymousBread"]
[Black "Th3ChessViking"]
[Result "1-0"]
[WhiteElo "2404"]
[BlackElo "2382"]
[TimeControl "180+2"]
[EndTime "14:35:29 PDT"]
[Termination "AnonymousBread won on time"]

1. d4 {[%clk 0:03:01.9]} 1... Nf6 {[%clk 0:03:00.5]} 2. Bf4 {[%clk 0:03:03.3]}
2... e6 {[%clk 0:03:00]} 3. Nc3 {[%clk 0:03:04.4]} 3... d5 {[%clk 0:02:54.2]} 4.
e3 {[%clk 0:03:05.4]} 4... a6 {[%clk 0:02:55]} 5. Bd3 {[%clk 0:03:04.3]} 5... c5
{[%clk 0:02:55.9]} 6. dxc5 {[%clk 0:03:06.2]} 6... Bxc5 {[%clk 0:02:55.3]} 7.
Nf3 {[%clk 0:03:07.6]} 7... Nc6 {[%clk 0:02:55.1]} 8. O-O {[%clk 0:03:09]} 8...
O-O {[%clk 0:02:50.5]} 9. e4 {[%clk 0:03:09.4]} 9... dxe4 {[%clk 0:02:35.3]} 10.
Nxe4 {[%clk 0:03:11.3]} 10... Be7 {[%clk 0:02:22.8]} 11. c3 {[%clk 0:03:08.5]}
11... b5 {[%clk 0:02:20.3]} 12. Qe2 {[%clk 0:03:03.9]} 12... Bb7 {[%clk
0:02:18.6]} 13. Rad1 {[%clk 0:03:04.2]} 13... Qb6 {[%clk 0:02:18.5]} 14. Rfe1
{[%clk 0:02:46.1]} 14... Nxe4 {[%clk 0:02:06.4]} 15. Bxe4 {[%clk 0:02:39.8]}
15... Rfd8 {[%clk 0:02:03.6]} 16. Bg5 {[%clk 0:02:39.9]} 16... Rxd1 {[%clk
0:01:44.2]} 17. Rxd1 {[%clk 0:02:35.5]} 17... Bf8 {[%clk 0:01:44.9]} 18. Rd7
{[%clk 0:02:20.2]} 18... h6 {[%clk 0:01:40.2]} 19. Bf4 {[%clk 0:01:47.5]} 19...
Rc8 {[%clk 0:00:32]} 20. Be3 {[%clk 0:01:42.1]} 1-0

[Event "*** Biggest EVER Titled Tuesday"]
[Site "Chess.com"]
[Date "2018.04.17"]
[Round "7"]
[White "Kriari"]
[Black "colemman"]
[Result "1-0"]
[WhiteElo "2751"]
[BlackElo "2517"]
[TimeControl "180+2"]
[EndTime "14:35:33 PDT"]
[Termination "Kriari won by checkmate"]

1. e4 {[%clk 0:03:01.9]} 1... c5 {[%clk 0:03:00.1]} 2. Nf3 {[%clk 0:03:02.1]}
2... e6 {[%clk 0:03:01.5]} 3. d4 {[%clk 0:03:03.3]} 3... cxd4 {[%clk 0:03:03.4]}
4. Nxd4 {[%clk 0:03:04.7]} 4... Nf6 {[%clk 0:03:05]} 5. Nc3 {[%clk 0:03:06.1]}
5... Nc6 {[%clk 0:03:06.5]} 6. Be3 {[%clk 0:03:07.1]} 6... Bb4 {[%clk
0:03:07.8]} 7. Nxc6 {[%clk 0:03:01.9]} 7... bxc6 {[%clk 0:03:08.3]} 8. Bd3
{[%clk 0:03:03]} 8... d5 {[%clk 0:03:08.2]} 9. Bd2 {[%clk 0:03:00.8]} 9... O-O
{[%clk 0:02:04.9]} 10. O-O {[%clk 0:02:48]} 10... Bxc3 {[%clk 0:01:59]} 11. Bxc3
{[%clk 0:02:49.9]} 11... Nxe4 {[%clk 0:01:59.4]} 12. Bxe4 {[%clk 0:02:47.1]}
12... dxe4 {[%clk 0:02:01.3]} 13. Qg4 {[%clk 0:02:48.5]} 13... f6 {[%clk
0:01:52.5]} 14. Qxe4 {[%clk 0:02:46.2]} 14... Qd5 {[%clk 0:01:49.7]} 15. Qe3
{[%clk 0:02:43.9]} 15... e5 {[%clk 0:01:49.2]} 16. f4 {[%clk 0:02:42.5]} 16...
exf4 {[%clk 0:01:42.4]} 17. Rxf4 {[%clk 0:02:38.9]} 17... c5 {[%clk 0:01:30.8]}
18. Qg3 {[%clk 0:02:34.8]} 18... Kh8 {[%clk 0:01:13.9]} 19. Raf1 {[%clk
0:02:27.6]} 19... Qf7 {[%clk 0:00:43.2]} 20. Qg5 {[%clk 0:01:45.3]} 20... h6
{[%clk 0:00:32.6]} 21. Rxf6 {[%clk 0:01:32.4]} 21... gxf6 {[%clk 0:00:21.9]} 22.
Rxf6 {[%clk 0:01:32.3]} 22... hxg5 {[%clk 0:00:20]} 23. Rh6+ {[%clk 0:01:31.7]}
23... Kg8 {[%clk 0:00:17.6]} 24. Rh8# {[%clk 0:01:33.6]} 1-0

[Event "*** Biggest EVER Titled Tuesday"]
[Site "Chess.com"]
[Date "2018.04.17"]
[Round "7"]
[White "Marcin"]
[Black "albi1999"]
[Result "1-0"]
[WhiteElo "2303"]
[BlackElo "2382"]
[TimeControl "180+2"]
[EndTime "14:35:34 PDT"]
[Termination "Marcin won by resignation"]

1. d4 {[%clk 0:03:01.9]} 1... d5 {[%clk 0:02:54.9]} 2. c4 {[%clk 0:03:01.9]}
2... e6 {[%clk 0:02:54.8]} 3. Nf3 {[%clk 0:03:02.2]} 3... Nf6 {[%clk 0:02:55.7]}
4. g3 {[%clk 0:03:03.1]} 4... Bb4+ {[%clk 0:02:53.2]} 5. Bd2 {[%clk 0:03:03.5]}
5... Bd6 {[%clk 0:02:52.4]} 6. Nc3 {[%clk 0:03:02.3]} 6... O-O {[%clk
0:02:49.8]} 7. b3 {[%clk 0:02:58]} 7... Nbd7 {[%clk 0:02:49.5]} 8. Bg2 {[%clk
0:02:58.9]} 8... c6 {[%clk 0:02:49.2]} 9. O-O {[%clk 0:02:59.1]} 9... dxc4
{[%clk 0:02:50.5]} 10. bxc4 {[%clk 0:02:59.8]} 10... e5 {[%clk 0:02:52]} 11. e3
{[%clk 0:03:00.4]} 11... Re8 {[%clk 0:02:51.3]} 12. Qc2 {[%clk 0:02:57.1]} 12...
Qe7 {[%clk 0:02:46.5]} 13. Rfe1 {[%clk 0:02:54.7]} 13... e4 {[%clk 0:02:33.8]}
14. Ng5 {[%clk 0:02:50.3]} 14... Nf8 {[%clk 0:02:20.6]} 15. Ngxe4 {[%clk
0:02:49.8]} 15... Nxe4 {[%clk 0:02:16.4]} 16. Bxe4 {[%clk 0:02:50.2]} 16... Ng6
{[%clk 0:02:16.1]} 17. Bg2 {[%clk 0:02:48.6]} 17... h5 {[%clk 0:02:16.3]} 18. e4
{[%clk 0:02:40.8]} 18... h4 {[%clk 0:02:16.2]} 19. e5 {[%clk 0:02:41.8]} 19...
Bb4 {[%clk 0:02:16.1]} 20. Rab1 {[%clk 0:02:37.8]} 20... a5 {[%clk 0:02:11.1]}
21. Qc1 {[%clk 0:02:11.2]} 21... hxg3 {[%clk 0:02:10.9]} 22. hxg3 {[%clk
0:02:11.9]} 22... Bf5 {[%clk 0:02:10.4]} 23. Ne4 {[%clk 0:02:08.9]} 23... Rad8
{[%clk 0:02:08.6]} 24. Bg5 {[%clk 0:01:19.7]} 24... Qc7 {[%clk 0:01:43.2]} 25.
Bxd8 {[%clk 0:01:19.9]} 25... Rxd8 {[%clk 0:01:45.1]} 26. Rxb4 {[%clk
0:01:18.2]} 26... axb4 {[%clk 0:01:45.4]} 27. Nd6 {[%clk 0:01:19.8]} 27... Rxd6
{[%clk 0:01:40.1]} 28. exd6 {[%clk 0:01:19.4]} 28... Qxd6 {[%clk 0:01:42]} 29.
Re8+ {[%clk 0:01:14.7]} 29... Kh7 {[%clk 0:01:42.6]} 30. Qe3 {[%clk 0:01:15]}
30... Be6 {[%clk 0:01:38.2]} 31. Qg5 {[%clk 0:01:02.1]} 31... Nf8 {[%clk
0:01:34.1]} 32. Rd8 {[%clk 0:00:54.7]} 1-0

[Event "*** Biggest EVER Titled Tuesday"]
[Site "Chess.com"]
[Date "2018.04.17"]
[Round "7"]
[White "Winehouse83"]
[Black "BIG_Pirate"]
[Result "0-1"]
[WhiteElo "2329"]
[BlackElo "2274"]
[TimeControl "180+2"]
[EndTime "14:35:48 PDT"]
[Termination "BIG_Pirate won by checkmate"]

1. e4 {[%clk 0:03:00.9]} 1... d5 {[%clk 0:03:00.8]} 2. exd5 {[%clk 0:02:59]}
2... Qxd5 {[%clk 0:03:02.7]} 3. Nc3 {[%clk 0:03:00.5]} 3... Qa5 {[%clk
0:03:03.8]} 4. d4 {[%clk 0:02:57.9]} 4... Nf6 {[%clk 0:03:04.4]} 5. Nf3 {[%clk
0:02:58.3]} 5... Bg4 {[%clk 0:03:05.2]} 6. h3 {[%clk 0:02:59.2]} 6... Bh5 {[%clk
0:03:06.4]} 7. g4 {[%clk 0:02:59.7]} 7... Bg6 {[%clk 0:03:07.5]} 8. Ne5 {[%clk
0:02:57.2]} 8... e6 {[%clk 0:03:08.7]} 9. Bd2 {[%clk 0:02:45]} 9... Qb6 {[%clk
0:03:04.3]} 10. Bg2 {[%clk 0:02:27.8]} 10... Nbd7 {[%clk 0:02:57.4]} 11. Nxd7
{[%clk 0:02:17.8]} 11... Nxd7 {[%clk 0:02:53.4]} 12. d5 {[%clk 0:02:15.2]} 12...
O-O-O {[%clk 0:02:48]} 13. O-O {[%clk 0:02:14.5]} 13... h5 {[%clk 0:02:43.1]}
14. a4 {[%clk 0:02:12.3]} 14... hxg4 {[%clk 0:02:33.8]} 15. hxg4 {[%clk
0:02:13.9]} 15... Qd6 {[%clk 0:02:32.5]} 16. f4 {[%clk 0:02:05.1]} 16... Qb6+
{[%clk 0:02:26.3]} 17. Rf2 {[%clk 0:02:06]} 17... Bc5 {[%clk 0:02:27.2]} 18. Be1
{[%clk 0:02:07.4]} 18... a5 {[%clk 0:02:06.6]} 19. Nb5 {[%clk 0:01:50.3]} 19...
Nf6 {[%clk 0:02:00.6]} 20. d6 {[%clk 0:01:37.2]} 20... Be4 {[%clk 0:01:45.4]}
21. Qe2 {[%clk 0:01:27]} 21... Bxg2 {[%clk 0:01:12.8]} 22. Kxg2 {[%clk
0:01:28.7]} 22... Bxf2 {[%clk 0:01:12.8]} 23. dxc7 {[%clk 0:01:10.5]} 23... Qc6+
{[%clk 0:01:03.7]} 24. Qf3 {[%clk 0:01:01.5]} 24... Rh2+ {[%clk 0:01:00.3]} 25.
Kxh2 {[%clk 0:01:02]} 25... Qxf3 {[%clk 0:01:01.8]} 26. Bxa5 {[%clk 0:01:02.8]}
26... Qg3+ {[%clk 0:00:59.6]} 27. Kh1 {[%clk 0:01:03.6]} 27... Qh3# {[%clk
0:01:01.1]} 0-1

[Event "*** Biggest EVER Titled Tuesday"]
[Site "Chess.com"]
[Date "2018.04.17"]
[Round "7"]
[White "RojonR"]
[Black "chesssharkattack"]
[Result "1-0"]
[WhiteElo "2409"]
[BlackElo "2370"]
[TimeControl "180+2"]
[EndTime "14:35:51 PDT"]
[Termination "RojonR won by resignation"]

1. e4 {[%clk 0:03:01.9]} 1... e5 {[%clk 0:03:01.2]} 2. Nf3 {[%clk 0:02:58]} 2...
Nf6 {[%clk 0:03:02.5]} 3. d4 {[%clk 0:02:55]} 3... Nxe4 {[%clk 0:03:02.4]} 4.
dxe5 {[%clk 0:02:54]} 4... d5 {[%clk 0:03:03.9]} 5. Nbd2 {[%clk 0:02:37.3]} 5...
Be7 {[%clk 0:02:20.5]} 6. Bd3 {[%clk 0:01:41.7]} 6... Nc5 {[%clk 0:02:19.4]} 7.
Be2 {[%clk 0:01:42.9]} 7... Nc6 {[%clk 0:02:19.3]} 8. O-O {[%clk 0:01:41.2]}
8... O-O {[%clk 0:02:19.2]} 9. Nb3 {[%clk 0:01:41.6]} 9... Ne4 {[%clk
0:02:18.8]} 10. c4 {[%clk 0:01:32.4]} 10... dxc4 {[%clk 0:02:07.2]} 11. Bxc4
{[%clk 0:01:26.1]} 11... Qxd1 {[%clk 0:02:08.1]} 12. Rxd1 {[%clk 0:01:26.4]}
12... Bg4 {[%clk 0:02:09.5]} 13. Bd5 {[%clk 0:01:15.5]} 13... Ng5 {[%clk
0:02:02.7]} 14. Bxc6 {[%clk 0:01:01.7]} 14... bxc6 {[%clk 0:02:02]} 15. Bxg5
{[%clk 0:00:57.7]} 15... Bxg5 {[%clk 0:02:01.9]} 16. Nxg5 {[%clk 0:00:58.4]}
16... Bxd1 {[%clk 0:02:03.4]} 17. Rxd1 {[%clk 0:00:59.9]} 17... Rad8 {[%clk
0:02:04.8]} 18. Rc1 {[%clk 0:00:58]} 18... Rfe8 {[%clk 0:02:04.8]} 19. Nf3
{[%clk 0:00:57]} 19... f6 {[%clk 0:02:05.7]} 20. exf6 {[%clk 0:00:57.6]} 20...
Re2 {[%clk 0:02:07.1]} 21. fxg7 {[%clk 0:00:54.5]} 21... Rxb2 {[%clk 0:02:07.1]}
22. h4 {[%clk 0:00:55.1]} 22... Rxa2 {[%clk 0:02:06.5]} 23. Nbd4 {[%clk
0:00:50.2]} 23... Rd7 {[%clk 0:01:57.1]} 24. Nf5 {[%clk 0:00:45.9]} 24... Ra5
{[%clk 0:01:45.6]} 25. N3d4 {[%clk 0:00:37.7]} 25... Rad5 {[%clk 0:01:40.8]} 26.
Re1 {[%clk 0:00:30.9]} 26... Kf7 {[%clk 0:01:24.4]} 27. Re8 {[%clk 0:00:28.1]}
1-0

[Event "*** Biggest EVER Titled Tuesday"]
[Site "Chess.com"]
[Date "2018.04.17"]
[Round "7"]
[White "ehrenfeld"]
[Black "Wraku89"]
[Result "1-0"]
[WhiteElo "2488"]
[BlackElo "2588"]
[TimeControl "180+2"]
[EndTime "14:35:56 PDT"]
[Termination "ehrenfeld won by resignation"]

1. e4 {[%clk 0:03:01.9]} 1... c5 {[%clk 0:03:01]} 2. Nf3 {[%clk 0:03:01.9]} 2...
e6 {[%clk 0:03:02.6]} 3. b3 {[%clk 0:03:02.2]} 3... Nc6 {[%clk 0:03:00.1]} 4.
Bb2 {[%clk 0:03:01.9]} 4... d5 {[%clk 0:03:01.7]} 5. exd5 {[%clk 0:03:01.9]}
5... exd5 {[%clk 0:03:03.6]} 6. Bb5 {[%clk 0:03:01.1]} 6... Be6 {[%clk
0:03:03.2]} 7. O-O {[%clk 0:02:59]} 7... Nf6 {[%clk 0:03:04.2]} 8. d4 {[%clk
0:02:58.9]} 8... Bd6 {[%clk 0:03:00.9]} 9. dxc5 {[%clk 0:02:59.1]} 9... Bxc5
{[%clk 0:03:02.8]} 10. Nd4 {[%clk 0:02:57.9]} 10... Qb6 {[%clk 0:02:53.1]} 11.
Nxe6 {[%clk 0:02:50.9]} 11... fxe6 {[%clk 0:02:55]} 12. Bxc6+ {[%clk 0:02:50.5]}
12... Qxc6 {[%clk 0:02:27.8]} 13. Nd2 {[%clk 0:02:31.9]} 13... O-O {[%clk
0:02:27.6]} 14. Qe2 {[%clk 0:02:29]} 14... Rae8 {[%clk 0:02:15.3]} 15. c4 {[%clk
0:02:27.4]} 15... d4 {[%clk 0:02:08.3]} 16. Rae1 {[%clk 0:02:24.9]} 16... e5
{[%clk 0:02:09.4]} 17. Ne4 {[%clk 0:02:24.6]} 17... Bb4 {[%clk 0:01:55.8]} 18.
Nxf6+ {[%clk 0:02:18.2]} 18... gxf6 {[%clk 0:01:53.7]} 19. Rd1 {[%clk
0:02:17.1]} 19... Kh8 {[%clk 0:01:54.8]} 20. f4 {[%clk 0:02:01.6]} 20... exf4
{[%clk 0:01:24.8]} 21. Qf2 {[%clk 0:01:56.2]} 21... Bc3 {[%clk 0:01:00.4]} 22.
Bxc3 {[%clk 0:01:46.9]} 22... dxc3 {[%clk 0:01:02.3]} 23. Rd3 {[%clk 0:01:44.1]}
23... Re3 {[%clk 0:00:18.6]} 24. Rxe3 {[%clk 0:01:44.2]} 24... fxe3 {[%clk
0:00:20.5]} 25. Qxe3 {[%clk 0:01:44.1]} 25... c2 {[%clk 0:00:20.9]} 26. Qc3
{[%clk 0:01:44.2]} 26... Qe4 {[%clk 0:00:19.1]} 27. Rc1 {[%clk 0:01:37.9]} 27...
Rd8 {[%clk 0:00:10.4]} 28. Qxf6+ {[%clk 0:01:35.7]} 1-0

[Event "*** Biggest EVER Titled Tuesday"]
[Site "Chess.com"]
[Date "2018.04.17"]
[Round "7"]
[White "Manukyan_Artak"]
[Black "Fins0905"]
[Result "0-1"]
[WhiteElo "2352"]
[BlackElo "2521"]
[TimeControl "180+2"]
[EndTime "14:35:56 PDT"]
[Termination "Fins0905 won by resignation"]

1. e4 {[%clk 0:03:01.9]} 1... d5 {[%clk 0:02:58.7]} 2. exd5 {[%clk 0:03:02.7]}
2... Qxd5 {[%clk 0:02:59.9]} 3. Nc3 {[%clk 0:03:03.8]} 3... Qd8 {[%clk
0:03:00.9]} 4. d4 {[%clk 0:03:02.8]} 4... Nf6 {[%clk 0:03:02.3]} 5. Bc4 {[%clk
0:03:02.3]} 5... a6 {[%clk 0:03:03.4]} 6. a3 {[%clk 0:02:51.2]} 6... e6 {[%clk
0:02:48]} 7. Nf3 {[%clk 0:02:51.7]} 7... b5 {[%clk 0:02:45.5]} 8. Ba2 {[%clk
0:02:35.4]} 8... Bb7 {[%clk 0:02:45.4]} 9. O-O {[%clk 0:02:35.5]} 9... c5 {[%clk
0:02:42.7]} 10. dxc5 {[%clk 0:02:31.3]} 10... Qxd1 {[%clk 0:02:41.1]} 11. Rxd1
{[%clk 0:02:32.3]} 11... Bxc5 {[%clk 0:02:40.7]} 12. Bf4 {[%clk 0:02:08.7]}
12... Nbd7 {[%clk 0:02:33.7]} 13. Ne5 {[%clk 0:02:02]} 13... Nxe5 {[%clk
0:02:28.8]} 14. Bxe5 {[%clk 0:02:03.1]} 14... Bxf2+ {[%clk 0:02:28.9]} 15. Kf1
{[%clk 0:01:57.6]} 15... Bc5 {[%clk 0:02:14.3]} 16. b4 {[%clk 0:01:42.3]} 16...
Bb6 {[%clk 0:01:43.5]} 17. a4 {[%clk 0:01:07.1]} 17... Ng4 {[%clk 0:01:36.4]}
18. Bf4 {[%clk 0:00:52.2]} 18... g5 {[%clk 0:01:15.8]} 19. Bd2 {[%clk
0:00:26.8]} 19... Nxh2+ {[%clk 0:01:06.1]} 20. Ke2 {[%clk 0:00:26.2]} 20... Bxg2
{[%clk 0:01:07.5]} 21. Rg1 {[%clk 0:00:22.4]} 21... Bf3+ {[%clk 0:01:05]} 22.
Kd3 {[%clk 0:00:21.9]} 22... O-O-O+ {[%clk 0:00:57.8]} 0-1

[Event "*** Biggest EVER Titled Tuesday"]
[Site "Chess.com"]
[Date "2018.04.17"]
[Round "7"]
[White "SenseiJulio"]
[Black "ArnaudovP"]
[Result "1-0"]
[WhiteElo "2632"]
[BlackElo "2480"]
[TimeControl "180+2"]
[EndTime "14:35:58 PDT"]
[Termination "SenseiJulio won by resignation"]

1. Nf3 {[%clk 0:03:01.9]} 1... Nf6 {[%clk 0:02:59.8]} 2. c4 {[%clk 0:03:02]}
2... e6 {[%clk 0:03:00.4]} 3. g3 {[%clk 0:03:00.4]} 3... c5 {[%clk 0:02:59]} 4.
Bg2 {[%clk 0:03:00.3]} 4... Nc6 {[%clk 0:02:56.2]} 5. O-O {[%clk 0:03:00.1]}
5... Be7 {[%clk 0:02:53.3]} 6. b3 {[%clk 0:03:00.6]} 6... O-O {[%clk 0:02:52.6]}
7. Bb2 {[%clk 0:03:02.5]} 7... d5 {[%clk 0:02:53.3]} 8. e3 {[%clk 0:03:03.3]}
8... d4 {[%clk 0:02:50.7]} 9. exd4 {[%clk 0:03:02.4]} 9... cxd4 {[%clk
0:02:51.8]} 10. Re1 {[%clk 0:03:03.6]} 10... Ne8 {[%clk 0:02:47.9]} 11. a3
{[%clk 0:03:00.5]} 11... f6 {[%clk 0:02:31.8]} 12. b4 {[%clk 0:03:00.4]} 12...
e5 {[%clk 0:02:32.6]} 13. d3 {[%clk 0:02:59.8]} 13... Nc7 {[%clk 0:02:29.7]} 14.
Nbd2 {[%clk 0:02:59.4]} 14... a5 {[%clk 0:02:29.9]} 15. b5 {[%clk 0:02:38.4]}
15... Nb8 {[%clk 0:02:30.4]} 16. Nh4 {[%clk 0:02:39.9]} 16... Ne6 {[%clk
0:02:05.1]} 17. Bd5 {[%clk 0:02:35.2]} 17... Kh8 {[%clk 0:01:49.8]} 18. f4
{[%clk 0:02:15.1]} 18... Nc7 {[%clk 0:01:40.7]} 19. Qh5 {[%clk 0:01:40.9]} 19...
Nxd5 {[%clk 0:01:38]} 20. cxd5 {[%clk 0:01:42.8]} 20... Kg8 {[%clk 0:01:29.6]}
21. fxe5 {[%clk 0:01:43.3]} 21... Qxd5 {[%clk 0:01:26.2]} 22. Nc4 {[%clk
0:01:24.8]} 22... Bc5 {[%clk 0:01:12.9]} 23. Qf3 {[%clk 0:01:17]} 23... Qxf3
{[%clk 0:01:10.8]} 24. Nxf3 {[%clk 0:01:18.9]} 24... Bf5 {[%clk 0:01:10.7]} 25.
Bxd4 {[%clk 0:01:16.1]} 25... Bxd4+ {[%clk 0:01:09.3]} 26. Nxd4 {[%clk 0:01:18]}
26... fxe5 {[%clk 0:01:01.1]} 27. Nxf5 {[%clk 0:01:12.3]} 27... Rxf5 {[%clk
0:01:01]} 28. Nb6 {[%clk 0:01:13.6]} 28... Ra7 {[%clk 0:01:00.9]} 29. Rac1
{[%clk 0:01:09.5]} 29... Rf8 {[%clk 0:00:55.7]} 30. Rf1 {[%clk 0:01:06.2]} 30...
Rd8 {[%clk 0:00:52.1]} 31. a4 {[%clk 0:01:06.9]} 31... Nd7 {[%clk 0:00:50.8]}
32. Nxd7 {[%clk 0:01:07.4]} 32... b6 {[%clk 0:00:51.6]} 33. Nxb6 {[%clk
0:01:06.6]} 1-0

[Event "*** Biggest EVER Titled Tuesday"]
[Site "Chess.com"]
[Date "2018.04.17"]
[Round "7"]
[White "Arystanner23"]
[Black "Ginger_GM"]
[Result "1-0"]
[WhiteElo "2498"]
[BlackElo "2447"]
[TimeControl "180+2"]
[EndTime "14:36:15 PDT"]
[Termination "Arystanner23 won by checkmate"]

1. e4 {[%clk 0:03:01.9]} 1... c5 {[%clk 0:02:59.7]} 2. Nf3 {[%clk 0:03:02.6]}
2... d6 {[%clk 0:03:00.3]} 3. Bb5+ {[%clk 0:03:03.8]} 3... Nc6 {[%clk
0:03:00.9]} 4. Bxc6+ {[%clk 0:03:04.7]} 4... bxc6 {[%clk 0:03:01.2]} 5. O-O
{[%clk 0:03:06.6]} 5... Bg4 {[%clk 0:03:01.3]} 6. h3 {[%clk 0:03:07.3]} 6... Bh5
{[%clk 0:03:01.8]} 7. e5 {[%clk 0:03:07.8]} 7... e6 {[%clk 0:02:53.2]} 8. exd6
{[%clk 0:03:07.6]} 8... Bxd6 {[%clk 0:02:51.6]} 9. Nc3 {[%clk 0:03:08.7]} 9...
Nf6 {[%clk 0:02:37.4]} 10. d3 {[%clk 0:03:09.5]} 10... Nd5 {[%clk 0:02:34.7]}
11. Ne4 {[%clk 0:03:09.7]} 11... O-O {[%clk 0:02:32.5]} 12. Ng3 {[%clk
0:02:55.8]} 12... Bxg3 {[%clk 0:02:28.8]} 13. fxg3 {[%clk 0:02:57.7]} 13... a5
{[%clk 0:02:16.6]} 14. g4 {[%clk 0:02:57.5]} 14... Bg6 {[%clk 0:02:16.9]} 15.
Ne5 {[%clk 0:02:56.9]} 15... Qd6 {[%clk 0:02:12.4]} 16. Nc4 {[%clk 0:02:52.5]}
16... Qc7 {[%clk 0:02:11.2]} 17. a4 {[%clk 0:02:51.7]} 17... f5 {[%clk
0:02:05.3]} 18. Qe2 {[%clk 0:02:40.9]} 18... Rae8 {[%clk 0:01:36.3]} 19. Bd2
{[%clk 0:02:40.8]} 19... e5 {[%clk 0:01:18.1]} 20. Bxa5 {[%clk 0:02:37.3]} 20...
Qb8 {[%clk 0:01:11]} 21. gxf5 {[%clk 0:02:37.6]} 21... Bxf5 {[%clk 0:01:11.6]}
22. Qd2 {[%clk 0:01:52.1]} 22... e4 {[%clk 0:01:06.1]} 23. dxe4 {[%clk
0:01:52.8]} 23... Rxe4 {[%clk 0:00:56.5]} 24. b3 {[%clk 0:01:52]} 24... Rd4
{[%clk 0:00:31.9]} 25. Qf2 {[%clk 0:01:38.2]} 25... Rf4 {[%clk 0:00:29.7]} 26.
Qxc5 {[%clk 0:01:36.2]} 26... Bxh3 {[%clk 0:00:26.1]} 27. Bd2 {[%clk 0:01:13.7]}
27... Rxf1+ {[%clk 0:00:25.7]} 28. Rxf1 {[%clk 0:01:15.6]} 28... Qg3 {[%clk
0:00:26]} 29. Qxf8# {[%clk 0:01:14.7]} 1-0

[Event "*** Biggest EVER Titled Tuesday"]
[Site "Chess.com"]
[Date "2018.04.17"]
[Round "7"]
[White "tigra"]
[Black "TregubovP"]
[Result "1-0"]
[WhiteElo "2702"]
[BlackElo "2571"]
[TimeControl "180+2"]
[EndTime "14:36:17 PDT"]
[Termination "tigra won by resignation"]

1. e4 {[%clk 0:02:56.8]} 1... c5 {[%clk 0:03:00.6]} 2. Nf3 {[%clk 0:02:57.1]}
2... e6 {[%clk 0:03:02]} 3. c3 {[%clk 0:02:56.4]} 3... d5 {[%clk 0:02:56.6]} 4.
exd5 {[%clk 0:02:57.1]} 4... exd5 {[%clk 0:02:57.2]} 5. d4 {[%clk 0:02:58.2]}
5... Nc6 {[%clk 0:02:57.5]} 6. Bb5 {[%clk 0:02:55.8]} 6... Bd6 {[%clk
0:02:57.1]} 7. O-O {[%clk 0:02:54.8]} 7... Ne7 {[%clk 0:02:58.4]} 8. dxc5 {[%clk
0:02:54.8]} 8... Bxc5 {[%clk 0:02:59.3]} 9. Re1 {[%clk 0:02:47.9]} 9... O-O
{[%clk 0:03:00.3]} 10. Be3 {[%clk 0:02:49]} 10... Bd6 {[%clk 0:02:46.6]} 11. Qa4
{[%clk 0:02:30.6]} 11... a6 {[%clk 0:02:40.1]} 12. Bxc6 {[%clk 0:02:29.8]} 12...
bxc6 {[%clk 0:02:38.8]} 13. c4 {[%clk 0:02:25.4]} 13... Rb8 {[%clk 0:02:19.9]}
14. cxd5 {[%clk 0:02:24.7]} 14... cxd5 {[%clk 0:02:18.7]} 15. Bd4 {[%clk
0:02:14.1]} 15... Nf5 {[%clk 0:02:12.2]} 16. Bc3 {[%clk 0:02:15]} 16... Bc5
{[%clk 0:01:59.1]} 17. Qf4 {[%clk 0:02:10.6]} 17... Be6 {[%clk 0:01:51.1]} 18.
Be5 {[%clk 0:01:43.4]} 18... Rb4 {[%clk 0:01:50.6]} 19. Qd2 {[%clk 0:01:44]}
19... Qb6 {[%clk 0:01:34.5]} 20. a3 {[%clk 0:01:44.4]} 20... Re4 {[%clk
0:01:35.2]} 21. Nc3 {[%clk 0:01:44.6]} 21... Rxe1+ {[%clk 0:01:25.3]} 22. Rxe1
{[%clk 0:01:46.5]} 22... Rd8 {[%clk 0:01:11.7]} 23. Na4 {[%clk 0:01:31.6]} 23...
Qb5 {[%clk 0:01:12.2]} 24. Nxc5 {[%clk 0:01:31.5]} 24... Qxc5 {[%clk 0:01:13.2]}
25. g4 {[%clk 0:01:30.2]} 25... Nd6 {[%clk 0:01:08]} 26. Qg5 {[%clk 0:01:28.1]}
26... f6 {[%clk 0:00:42]} 27. Bxf6 {[%clk 0:01:27.4]} 27... Rd7 {[%clk
0:00:39.1]} 28. Rxe6 {[%clk 0:01:26.3]} 28... h6 {[%clk 0:00:29.3]} 29. Qg6
{[%clk 0:01:20]} 1-0

[Event "*** Biggest EVER Titled Tuesday"]
[Site "Chess.com"]
[Date "2018.04.17"]
[Round "7"]
[White "Parhamov"]
[Black "rasmussvane"]
[Result "0-1"]
[WhiteElo "2767"]
[BlackElo "2670"]
[TimeControl "180+2"]
[EndTime "14:36:29 PDT"]
[Termination "rasmussvane won by resignation"]

1. Nf3 {[%clk 0:02:56.5]} 1... d5 {[%clk 0:03:00.3]} 2. g3 {[%clk 0:02:57.8]}
2... g6 {[%clk 0:03:00.8]} 3. Bg2 {[%clk 0:02:59.2]} 3... Bg7 {[%clk 0:03:02.1]}
4. O-O {[%clk 0:03:00.8]} 4... e5 {[%clk 0:03:02.4]} 5. c4 {[%clk 0:03:02.4]}
5... dxc4 {[%clk 0:03:02.7]} 6. Na3 {[%clk 0:03:01.6]} 6... Nc6 {[%clk
0:03:01.8]} 7. Nxc4 {[%clk 0:03:00.8]} 7... e4 {[%clk 0:03:01.9]} 8. Ne1 {[%clk
0:03:00.8]} 8... Be6 {[%clk 0:03:01.6]} 9. Ne3 {[%clk 0:02:59.5]} 9... f5 {[%clk
0:03:00.9]} 10. d3 {[%clk 0:02:59.4]} 10... Nf6 {[%clk 0:03:01.7]} 11. Bd2
{[%clk 0:03:00.1]} 11... O-O {[%clk 0:03:00.3]} 12. Bc3 {[%clk 0:03:00]} 12...
Nd4 {[%clk 0:02:55.5]} 13. dxe4 {[%clk 0:02:25.2]} 13... Nxe4 {[%clk 0:02:54.6]}
14. Nd3 {[%clk 0:02:26.3]} 14... Nxc3 {[%clk 0:02:52]} 15. bxc3 {[%clk
0:02:25.9]} 15... Nb5 {[%clk 0:02:44.6]} 16. Nc5 {[%clk 0:02:20]} 16... Bf7
{[%clk 0:02:37]} 17. c4 {[%clk 0:01:57]} 17... Bxa1 {[%clk 0:02:23]} 18. Qxa1
{[%clk 0:01:57.2]} 18... Qd4 {[%clk 0:02:22.2]} 19. Nd5 {[%clk 0:01:38.2]} 19...
Qxa1 {[%clk 0:02:19.4]} 20. Rxa1 {[%clk 0:01:38.4]} 20... Nd6 {[%clk 0:02:00.4]}
21. Nd7 {[%clk 0:01:39.1]} 21... Rfd8 {[%clk 0:01:58]} 22. c5 {[%clk 0:01:40]}
22... Kg7 {[%clk 0:01:47.2]} 23. N5f6 {[%clk 0:01:10.5]} 23... Ne4 {[%clk
0:01:39.7]} 24. Nxe4 {[%clk 0:01:07.3]} 24... Rxd7 {[%clk 0:01:37.5]} 25. Ng5
{[%clk 0:01:07.7]} 25... c6 {[%clk 0:01:35.5]} 26. a4 {[%clk 0:01:05.3]} 26...
Rad8 {[%clk 0:01:34.3]} 27. Bf1 {[%clk 0:01:04.3]} 27... Rd1 {[%clk 0:01:34.2]}
28. Ra3 {[%clk 0:01:04.9]} 28... Rc1 {[%clk 0:01:33.2]} 29. Re3 {[%clk
0:00:59.7]} 29... Rdd1 {[%clk 0:01:29.7]} 30. Re7 {[%clk 0:01:00.3]} 30... Rxf1+
{[%clk 0:01:30.1]} 31. Kg2 {[%clk 0:01:01.6]} 31... Kf6 {[%clk 0:01:30.7]} 32.
Rxf7+ {[%clk 0:01:02.8]} 32... Kxg5 {[%clk 0:01:31.7]} 33. e4 {[%clk 0:00:41.1]}
33... fxe4 {[%clk 0:01:23.2]} 34. h4+ {[%clk 0:00:41.6]} 34... Kh6 {[%clk
0:01:24]} 35. g4 {[%clk 0:00:42.9]} 35... Rg1+ {[%clk 0:01:22.8]} 36. Kh3 {[%clk
0:00:43.8]} 36... Rc3+ {[%clk 0:01:21.1]} 37. f3 {[%clk 0:00:43.6]} 37... Rxf3+
{[%clk 0:01:20.8]} 0-1